[Event "FIDE Candidates Tournament 2022"]
[Site "Madrid"]
[Date "2022.06.26"]
[Round "8.1"]
[White "Rapport, Richard"]
[Black "Duda, Jan-Krzysztof"]
[Result "1-0"]
[ECO "C26"]
[WhiteElo "2776"]
[BlackElo "2750"]
[Annotator "TA"]
[PlyCount "57"]
[EventDate "2022.06.17"]
[EventType "tourn"]
[EventCountry "ESP"]
[SourceTitle "playchess.com"]
[Source "ChessBase"]
[SourceQuality "1"]
[TimeControl "40/7200:20/3600:900+30"]

{[%evp 10,57,-7,-8,-11,-10,7,-7,-7,-17,-11,-8,-4,-18,-15,-22,-13,-14,-12,-52,-52,-55,-52,-54,-40,-39,-32,-38,-33,-37,-37,-39,-37,-40,-38,-27,0,0,37,0,133,51,167,149,216,228,400,389,1148,854]} 1. e4 {[%emt 0:01:00]} e5 {[%emt 0:00:06]} 2. Nf3 {[%emt 0:00:15]} Nf6 {[%emt 0:00:06]} 3. Nc3 {[%emt 0:02:16]} Nc6 {[%emt 0:00:24]} 4. g3 {[%emt 0:00:33]} Bc5 {[%emt 0:02:40]} 5. Bg2 {[%emt 0:00:31]} d6 {[%emt 0:00:25]} 6. d3 {[%emt 0:01:01]} a5 {[%emt 0:03:15] C26: Vienna Game: 2...Nf6, sidelines .} 7. O-O {[%emt 0:02:02]} h6 {[%emt 0:03:42] [#]} 8. b3 $146 {[%emt 0:04:31]} ({Predecessor:} 8. h3 Be6 9. Nd2 a4 10. Nc4 Nd4 11. Kh2 b5 12. Ne3 c6 13. f4 a3 14. f5 axb2 15. Bxb2 {1-0 (57) Risteski,E (2363)-Lysyj,I (2603) Chess.com INT 2022}) 8... O-O {[%emt 0:00:58] The position is equal.} 9. h3 {[%emt 0:00:33]} Nd4 {[%emt 0:06:22]} 10. Be3 {[%emt 0:08:32]} c6 {[%emt 0:02:41]} 11. Kh2 {[%emt 0:11:42]} Re8 {[%emt 0:03:35]} 12. a3 {[%emt 0:14:04]} Nxf3+ {[%emt 0:21:50]} 13. Qxf3 {[%emt 0:00:40]} Bxe3 {[%emt 0:00:14]} 14. fxe3 {[%emt 0:00:45]} b5 {[%emt 0:00:14]} 15. g4 {[%emt 0:03:24]} Ra7 {[%emt 0:01:37]} 16. Qg3 {[%emt 0:02:16]} h5 {[%emt 0:01:20][%cal Rh5g4]} 17. g5 {[%emt 0:08:42]} h4 {[%emt 0:00:46]} 18. Qxh4 {[%emt 0:00:13]} Nh7 {[%emt 0:00:05]} 19. Qg3 {[%emt 0:01:29]} (19. a4 b4 20. Nd1 Nxg5 $17) 19... Nxg5 {[%emt 0:04:41]} 20. h4 {[%emt 0:04:13]} Nh7 {[%emt 0:00:32] And now ...Re6 would win.} 21. Bh3 {[%emt 0:00:30] Prevents Re6.} Bxh3 {[%emt 0:01:44]} 22. Rg1 {[%emt 0:00:19][%csl Gg1][%cal Rg3g7]} Ng5 {[%emt 0:07:50]} 23. hxg5 {[%emt 0:11:07]} Bc8 {[%emt 0:00:56]} 24. Rg2 {[%emt 0:06:14]} (24. Raf1 $5 {[%cal Rg3h4]}) 24... Rae7 {[%emt 0:11:38]} (24... f6 $11) 25. Qf3 {[%emt 0:07:43]} (25. Qh4 $16) 25... g6 {[%emt 0:25:57] [#]} (25... f6 $14) 26. Rh1 $1 $18 {[%emt 0:03:03] Intending Kg1 and mate.} f5 {[%emt 0:01:51] [#]} (26... f6 $16 {might work better.}) 27. Kg1 $1 {[%emt 0:02:58] exf5 is the strong threat.} ({Worse is} 27. gxf6 Rh7+ 28. Kg1 Rxh1+ 29. Kxh1 Kf7 $11) 27... b4 $2 {[%emt 0:05:11]} (27... Rf8 28. Rh6 (28. Qh3 Rg7 $16) 28... Rg7) 28. exf5 {[%emt 0:02:27]} ({Not} 28. Qh3 Rg7 29. axb4 axb4 $14) 28... gxf5 {[%emt 0:00:01] [#]} (28... bxc3 $2 29. fxg6 Qd7 30. Qh5 $18) (28... Bxf5 29. Ne4 bxa3 30. Nf6+ Kf7) 29. Ne4 $1 {[%emt 0:03:07][%mdl 512] Weighted Error Value: White=0.08 (flawless) /Black=0.32} 1-0

[Event "FIDE Candidates Tournament 2022"]
[Site "Madrid"]
[Date "2022.06.26"]
[Round "8.2"]
[White "Nepomniachtchi, Ian"]
[Black "Ding, Liren"]
[Result "1/2-1/2"]
[ECO "C47"]
[WhiteElo "2773"]
[BlackElo "2806"]
[Annotator "TA"]
[PlyCount "74"]
[EventDate "2022.06.17"]
[EventType "tourn"]
[EventCountry "ESP"]
[SourceTitle "playchess.com"]
[Source "ChessBase"]
[SourceQuality "1"]
[TimeControl "40/7200:20/3600:900+30"]

{[%evp 24,74,0,2,18,18,22,19,21,21,15,21,18,18,16,18,22,10,21,16,14,7,33,18,20,0,0,0,0,0,0,0,0,0,0,0,0,0,0,0,0,0,0,0,0,0,0,0,0,0,0,0,0]} 1. e4 {[%emt 0:00:04]} e5 {[%emt 0:00:02]} 2. Nf3 {[%emt 0:00:05]} Nc6 {[%emt 0:00:04]} 3. Nc3 {[%emt 0:00:04]} Nf6 {[%emt 0:00:04]} 4. d4 {[%emt 0:00:05]} exd4 {[%emt 0:00:04]} 5. Nxd4 {[%emt 0:00:06]} Bb4 {[%emt 0:00:09]} 6. Nxc6 {[%emt 0:00:10]} bxc6 {[%emt 0:00:03]} 7. Bd3 {[%emt 0:00:10]} d5 {[%emt 0:00:07]} 8. exd5 {[%emt 0:00:12]} O-O {[%emt 0:00:06]} 9. O-O {[%emt 0:00:05]} cxd5 {[%emt 0:00:04]} 10. Qf3 {[%emt 0:00:14]} c6 {[%emt 0:01:03]} 11. Bg5 {[%emt 0:00:18]} Bd6 {[%emt 0:04:40] 11...Bd6 is a critical line.} 12. Rae1 {[%emt 0:00:18]} Rb8 {[%emt 0:01:29]} 13. Nd1 {[%emt 0:00:15]} h6 {[%emt 0:03:50] C47: Scotch Four Knights and Four Knights with 4 g3.} 14. Bxf6 {[%emt 0:00:19]} Qxf6 {[%emt 0:00:04]} 15. Qxf6 {[%emt 0:00:05]} gxf6 {[%emt 0:00:03]} 16. b3 {[%emt 0:00:06]} f5 {[%emt 0:00:45]} 17. Ne3 {[%emt 0:00:22]} f4 {[%emt 0:00:08]} 18. Nf5 {[%emt 0:00:07]} Bxf5 {[%emt 0:00:03]} 19. Bxf5 {[%emt 0:00:06]} Kg7 {[%emt 0:00:08]} 20. g3 {[%emt 0:00:37]} Kf6 {[%emt 0:00:51]} 21. Bd3 {[%emt 0:00:11] [#]} h5 $146 {[%emt 0:06:32]} ({Predecessor:} 21... Rfe8 22. Kg2 Rxe1 23. Rxe1 Bb4 24. Rh1 Bd6 25. Kf3 fxg3 26. hxg3 Bf8 27. Rh4 Rb4 28. Rxb4 Bxb4 {½-½ (40) Predke,A (2683)-Lysyj,I (2605) Cheboksary 2021}) 22. Kg2 {[%emt 0:01:15]} Rh8 {[%emt 0:00:29]} 23. Kf3 {[%emt 0:02:00]} fxg3 {[%emt 0:00:23] The position is equal.} 24. hxg3 {[%emt 0:01:45]} h4 {[%emt 1:38:49]} 25. Rh1 {[%emt 0:00:38]} hxg3 {[%emt 0:00:00]} 26. fxg3 {[%emt 0:00:06]} a5 {[%emt 0:00:00]} 27. a4 {[%emt 0:02:02]} Bb4 {[%emt 0:00:00]} 28. Ref1 {[%emt 0:02:11]} Rxh1 {[%emt 0:00:00]} 29. Rxh1 $11 {[%emt 0:00:18][%mdl 4096] Endgame KRB-KRB} Ke5 {[%emt 0:00:00]} 30. Rh4 {[%emt 0:02:13]} Rg8 {[%emt 0:00:00]} 31. Rg4 {[%emt 0:00:57]} Rxg4 {[%emt 0:00:00]} 32. Kxg4 {[%emt 0:00:04] KB-KB} f6 {[%emt 0:00:00]} 33. Kf3 {[%emt 0:00:06]} f5 {[%emt 0:00:00]} 34. Ke2 {[%emt 0:00:18]} Bc3 {[%emt 0:00:00]} 35. Kf3 {[%emt 0:00:05]} Bb4 {[%emt 0:00:00]} 36. Ke2 {[%emt 0:00:06]} Bc3 {[%emt 0:00:00]} 37. Kf3 {[%emt 0:00:08]} Bb4 {[%emt 0:00:00] An interesting draw.  Weighted Error Value: White=0.03 (flawless) /Black=0.03 (flawless)} 1/2-1/2

[Event "FIDE Candidates Tournament 2022"]
[Site "Madrid"]
[Date "2022.06.26"]
[Round "8.3"]
[White "Nakamura, Hikaru"]
[Black "Caruana, Fabiano"]
[Result "1-0"]
[ECO "C82"]
[WhiteElo "2760"]
[BlackElo "2786"]
[Annotator "TA"]
[PlyCount "147"]
[EventDate "2022.06.17"]
[EventType "tourn"]
[EventCountry "ESP"]
[SourceTitle "playchess.com"]
[Source "ChessBase"]
[SourceQuality "1"]
[TimeControl "40/7200:20/3600:900+30"]

{[%evp 19,147,0,0,0,0,0,0,0,0,0,0,0,0,0,24,0,10,0,8,0,0,0,29,-21,0,0,0,0,0,0,0,0,0,0,37,6,67,72,114,121,117,122,119,110,93,81,83,93,81,90,129,121,139,136,127,135,127,136,187,178,183,170,229,151,155,136,153,117,156,150,150,199,198,197,200,200,192,198,263,265,247,234,429,421,458,459,449,424,473,455,489,400,431,428,423,408,404,410,379,281,248,118,120,127,218,113,113,114,95,0,118,118,250,255,245,236,326,309,350,343,347,338,357,368,379,379,378,333,327,303]} 1. e4 {[%emt 0:00:04]} e5 {[%emt 0:00:04]} 2. Nf3 {[%emt 0:00:07]} Nc6 {[%emt 0:00:04]} 3. Bb5 {[%emt 0:00:05]} a6 {[%emt 0:00:04]} 4. Ba4 {[%emt 0:00:05]} Nf6 {[%emt 0:00:05]} 5. O-O {[%emt 0:00:08]} Nxe4 {[%emt 0:00:06]} 6. d4 {[%emt 0:00:06]} b5 {[%emt 0:00:06]} 7. Bb3 {[%emt 0:00:03]} d5 {[%emt 0:00:04]} 8. dxe5 {[%emt 0:00:05]} Be6 {[%emt 0:00:04]} 9. c3 {[%emt 0:00:08]} Bc5 {[%emt 0:00:13]} 10. Nbd2 {[%emt 0:00:08]} O-O {[%emt 0:00:11]} 11. Bc2 {[%emt 0:00:06] C82: Open Ruy Lopez: 9 c3 without 9...Be7.} Nxf2 {[%emt 0:00:17]} 12. Rxf2 {[%emt 0:00:05][%cal Od2b3]} Bxf2+ {[%emt 0:00:06]} 13. Kxf2 {[%emt 0:00:04] The position is equal.} f6 {[%emt 0:00:07]} 14. Nf1 $1 {[%emt 0:00:07][%mdl 4] is now more promising than 14.exf6.} fxe5 {[%emt 0:00:07] Strongly threatening ...e4.} 15. Kg1 {[%emt 0:00:03][%cal Oc2h7]} Qd6 {[%emt 0:00:34]} 16. Be3 {[%emt 0:00:32]} Bf5 {[%emt 0:00:52]} 17. Bb3 {[%emt 0:00:23][%mdl 1024] White has compensation.} Rad8 {[%emt 0:00:24]} 18. Qe1 {[%emt 0:00:06]} Na5 {[%emt 0:01:04]} 19. Qf2 {[%emt 0:00:07] And now Bc5 would win.} Nb7 {[%emt 0:00:29] Prevents Bc5.} 20. Re1 {[%emt 0:00:09] [#]} c5 $146 {[%emt 0:00:56][%cal Bc7c5,Bc5c4][%mdl 32]} ({Predecessor:} 20... Bg4 21. Qg3 Bxf3 22. gxf3 Na5 23. Bc2 Nc4 24. Bc1 Rde8 25. Ne3 Kh8 26. Kg2 Re6 {1-0 (69) Roy,R (2184)-Nurtawa,S (2027) ICCF email 2020}) 21. Ng3 {[%emt 0:00:51]} (21. Bg5 $142 e4 22. Bxd8 Qxd8 23. Ne5) 21... Bd3 {[%emt 0:22:07]} (21... Bg6 $5 {[%cal Re5e4]} 22. Qd2 h6 $15) 22. Qd2 {[%emt 0:03:17]} c4 {[%emt 0:21:19]} 23. Bd1 {[%emt 0:12:45]} Rd7 {[%emt 0:11:36]} 24. Bf2 {[%emt 0:06:40]} Rdf7 {[%emt 0:10:36]} 25. Nh1 {[%emt 0:02:55]} (25. Rxe5 Rxf3 $1 {[%mdl 512]} 26. Bxf3 Qxe5 $19) 25... e4 {[%emt 0:06:48]} 26. Nd4 {[%emt 0:01:57]} Qg6 {[%emt 0:08:25][%cal Ob5b4]} 27. h4 {[%emt 0:24:42][%cal Bh2h4,Bh4h5][%mdl 32]} Nc5 {[%emt 0:14:50]} (27... h5 $11) 28. h5 $14 {[%emt 0:03:12]} Qd6 {[%emt 0:00:51]} 29. Bg4 $1 {[%emt 0:01:27] Inhibits Ne6.} h6 {[%emt 0:07:57]} 30. Qe3 $1 {[%emt 0:03:02]} Qf4 {[%emt 0:00:12]} 31. Qxf4 {[%emt 0:05:49] Really sharp!} Rxf4 {[%emt 0:00:02]} 32. Ne6 {[%emt 0:00:30]} Nxe6 {[%emt 0:01:15]} 33. Bxe6+ {[%emt 0:00:05]} Kh7 {[%emt 0:00:02]} 34. Bxd5 {[%emt 0:00:15]} R8f5 {[%emt 0:00:38][%csl LRd5,LRh5]} 35. Bc6 {[%emt 0:02:47]} Rxh5 {[%emt 0:00:45]} 36. Bd4 {[%emt 0:01:33]} Rhf5 {[%emt 0:03:57] ...Rf1+ is the strong threat.} 37. Nf2 {[%emt 0:07:08]} Rf7 {[%emt 0:00:01]} 38. b4 {[%emt 0:04:53]} h5 {[%emt 0:01:19]} (38... cxb3 $16 39. axb3 Rc7 40. Bxe4+ (40. Nxd3 exd3 41. Bd5 b4 $14) 40... Bxe4) 39. a4 $18 {[%emt 0:08:17]} (39. Nxe4 Rf1+ 40. Rxf1 Rxf1+ 41. Kh2 Ra1 $16) (39. Bxe4+ Bxe4 40. Nxe4 (40. Rxe4 Rxe4 41. Nxe4 Kg6 $11) 40... Rg4) 39... bxa4 {[%emt 0:00:04]} 40. Bxa4 {[%emt 0:00:00]} h4 {[%emt 0:00:00]} (40... R4f5 $142 41. g4 Rf3) 41. Be3 {[%emt 0:03:15] This bishop pair is nice.} R4f5 {[%emt 0:09:26]} 42. Ra1 $1 {[%emt 0:03:33]} h3 {[%emt 0:02:12][%cal Of5f2]} 43. Ra2 {[%emt 0:07:27]} (43. Nxh3 $6 Rf1+ 44. Rxf1 Rxf1+ 45. Kh2 Re1 46. Ng5+ Kg6 47. Be8+ Kf6 $14) (43. gxh3 Rf3 44. Re1 Rg3+ 45. Kh2 Rxe3 $1 46. Rxe3 Rxf2+ 47. Kg3 Rf6 $15) 43... hxg2 {[%emt 0:03:42]} 44. Bd1 {[%emt 0:00:04] Prevents Rf3.} R7f6 {[%emt 0:06:23]} 45. Bg4 $1 {[%emt 0:01:20]} (45. Kxg2 $6 Rg6+ 46. Kh2 Bf1 $16) 45... Rd5 {[%emt 0:06:29]} 46. Kxg2 {[%emt 0:00:33]} Rg6 {[%emt 0:05:34]} 47. Kg3 $1 {[%emt 0:02:10]} Bf1 {[%emt 0:04:25]} 48. Bd4 $1 {[%emt 0:07:09]} (48. Nxe4 $6 Re5 49. Ng5+ Rexg5 50. Bxg5 Rxg5 $16) 48... Bd3 {[%emt 0:11:54]} (48... Rf5 $142 49. Nxe4 Bd3) 49. Kf4 {[%emt 0:02:04]} Kg8 {[%emt 0:00:15]} 50. Bf5 {[%emt 0:07:46]} Rh6 {[%emt 0:02:43]} (50... Rc6 {was worth a try.} 51. Nxd3 (51. Bxe4 Bxe4 52. Nxe4 Rh5 $18) (51. Nxe4 g5+ 52. Kg4 Rh6 $16) 51... exd3) 51. Ng4 {[%emt 0:01:11]} Rhd6 {[%emt 0:01:47]} 52. Ne3 {[%emt 0:05:10]} Rb5 {[%emt 0:00:53]} 53. Bc5 {[%emt 0:04:21]} Rf6 {[%emt 0:00:40]} 54. Ke5 {[%emt 0:01:48]} Kf7 {[%emt 0:00:04]} 55. Nd5 {[%emt 0:03:00]} Rxf5+ {[%emt 0:01:01]} 56. Kxf5 {[%emt 0:00:05]} e3+ {[%emt 0:00:02]} 57. Ke5 {[%emt 0:02:03]} e2 {[%emt 0:00:05]} 58. Bf2 {[%emt 0:00:17]} Rb8 {[%emt 0:00:19]} 59. Be1 {[%emt 0:00:54]} Re8+ {[%emt 0:00:14]} 60. Kf4 {[%emt 0:00:00]} (60. Kd4 $18 {is the precise move to win.}) 60... g5+ $16 {[%emt 0:00:00]} 61. Kg3 {[%emt 0:01:22]} Re6 {[%emt 0:05:24] [#]} (61... Re5 $16) 62. Kf2 {[%emt 0:03:18]} (62. Ra1 $1 $18) 62... Rh6 {[%emt 0:04:36]} 63. Ke3 {[%emt 0:02:51]} Re6+ {[%emt 0:00:05]} 64. Kf2 {[%emt 0:01:06] Threatens to win with Ra5.} Rh6 $1 {[%emt 0:00:04]} 65. Ne3 {[%emt 0:01:59] Hoping for Ng4.} Rf6+ {[%emt 0:02:08] This move loses the game for Black.} (65... Rh1 $16 {was called for.} 66. Ng2 g4) 66. Kg3 $18 {[%emt 0:00:35]} Rf1 {[%emt 0:00:05] [#]} 67. Ng2 $1 {[%emt 0:00:07]} Rf6 {[%emt 0:05:36]} 68. Bf2 {[%emt 0:00:32]} Kg6 {[%emt 0:00:48]} 69. Ra5 {[%emt 0:00:40]} Re6 {[%emt 0:02:18]} 70. Ne1 {[%emt 0:00:37]} Bf5 {[%emt 0:00:03]} 71. Nf3 {[%emt 0:00:56]} Rd6 {[%emt 0:01:00]} 72. Nd4 {[%emt 0:00:59]} ({Resist} 72. Ne5+ Kf6 73. Be1 (73. Nxc4 Rd3+ 74. Kh2 Bc8 $16) 73... Be6 $18) 72... Bd3 {[%emt 0:00:18]} 73. Re5 {[%emt 0:00:06]} Kf6 {[%emt 0:00:43]} 74. Nf3 {[%emt 0:00:52] Weighted Error Value: White=0.09 (flawless) /Black=0.17 (very precise)} 1-0

[Event "FIDE Candidates Tournament 2022"]
[Site "Madrid"]
[Date "2022.06.26"]
[Round "8.4"]
[White "Firouzja, Alireza"]
[Black "Radjabov, Teimour"]
[Result "1/2-1/2"]
[ECO "C54"]
[WhiteElo "2804"]
[BlackElo "2753"]
[Annotator "TA"]
[PlyCount "185"]
[EventDate "2022.06.17"]
[EventType "tourn"]
[EventCountry "ESP"]
[SourceTitle "playchess.com"]
[Source "ChessBase"]
[SourceQuality "1"]
[TimeControl "40/7200:20/3600:900+30"]

{[%evp 28,185,20,14,17,22,26,0,16,0,25,22,40,41,41,37,37,37,42,21,36,27,49,45,39,-30,67,66,87,50,58,48,72,41,41,25,30,27,35,26,18,17,35,24,26,13,2,0,36,28,14,15,41,56,38,45,41,40,41,0,0,0,11,12,14,10,8,12,36,39,30,25,26,25,37,26,32,8,16,0,18,23,22,15,32,33,28,25,39,12,8,0,0,0,0,0,0,0,0,0,0,0,0,0,0,0,29,28,28,28,31,0,47,47,70,61,70,53,55,55,62,55,52,34,63,31,90,85,85,85,88,27,38,32,28,30,37,30,45,4,32,32,71,20,20,0,0,0,0,0,0,0,0,0,0,0,0,0,0,0]} 1. e4 {[%emt 0:00:02]} e5 {[%emt 0:00:03]} 2. Nf3 {[%emt 0:00:05]} Nc6 {[%emt 0:00:03]} 3. Bc4 {[%emt 0:00:09]} Bc5 {[%emt 0:00:16]} 4. d3 {[%emt 0:00:14]} Nf6 {[%emt 0:00:17]} 5. h3 {[%emt 0:00:18]} h6 {[%emt 0:00:24]} 6. c3 {[%emt 0:01:23]} d6 {[%emt 0:00:48]} 7. Nbd2 {[%emt 0:00:58]} a6 {[%emt 0:00:54]} 8. b4 {[%emt 0:01:40]} Ba7 {[%emt 0:01:17]} 9. a4 {[%emt 0:00:31]} Be6 {[%emt 0:03:45]} 10. Bxe6 {[%emt 0:03:18]} fxe6 {[%emt 0:00:18]} 11. O-O {[%emt 0:09:34]} O-O {[%emt 0:01:06]} 12. Re1 {[%emt 0:08:40]} Qe8 {[%emt 0:02:08]} 13. Nf1 {[%emt 0:03:04]} Nh5 {[%emt 0:02:03]} 14. Ra2 {[%emt 0:04:34]} Nf4 {[%emt 0:03:24]} 15. Kh2 {[%emt 0:04:47]} Qf7 {[%emt 0:02:08]} 16. Be3 {[%emt 0:06:26]} Bxe3 {[%emt 0:03:01]} 17. Nxe3 {[%emt 0:01:36]} Kh8 {[%emt 0:06:28]} 18. Ng4 {[%emt 0:06:28]} Ne7 {[%emt 0:04:13]} 19. Ng1 {[%emt 0:03:03]} Neg6 {[%emt 0:09:49]} 20. g3 {[%emt 0:02:09]} Nh5 $1 {[%emt 0:00:34]} 21. Kg2 {[%emt 0:04:09]} Nf6 {[%emt 0:01:34]} 22. Nf3 {[%emt 0:01:18]} Qd7 {[%emt 0:03:00]} 23. Nfh2 {[%emt 0:14:05]} Qc6 {[%emt 0:06:08]} 24. Qb3 {[%emt 0:01:38]} Rae8 {[%emt 0:07:41]} 25. h4 {[%emt 0:04:53]} Nh5 {[%emt 0:11:49]} 26. Re3 {[%emt 0:02:26] [#]} (26. Rb1 $14) 26... b5 {[%emt 0:05:07]} (26... Nhf4+ $1 $11 27. gxf4 Nxf4+ 28. Kh1 h5) 27. Nf3 $14 {[%emt 0:01:20]} Qd7 {[%emt 0:04:43]} 28. Qd1 {[%emt 0:01:57]} Nf6 {[%emt 0:04:10]} 29. Nfh2 {[%emt 0:07:00]} Qc6 {[%emt 0:10:09]} 30. Ra3 {[%emt 0:05:05]} Kh7 {[%emt 0:02:16]} 31. Kg1 {[%emt 0:00:51]} Rf7 {[%emt 0:05:08]} 32. axb5 {[%emt 0:04:19]} axb5 {[%emt 0:00:20]} 33. d4 {[%emt 0:00:48]} Ref8 {[%emt 0:07:04]} ({Not} 33... Nxe4 34. Qd3 h5 35. Rxe4 $16) 34. Ra2 {[%emt 0:03:27]} Qc4 {[%emt 0:01:22]} ({Much less strong is} 34... Nxe4 35. Qd3 Qxc3 36. Qxe4 Qxd4 37. Qb1 $16) 35. Rb2 {[%emt 0:00:20]} Ra8 {[%emt 0:01:16]} 36. Rf3 {[%emt 0:02:31]} Raf8 {[%emt 0:00:29]} 37. Re3 {[%emt 0:02:49]} Ra8 {[%emt 0:00:05]} 38. Nxf6+ {[%emt 0:00:23]} gxf6 {[%emt 0:00:28]} 39. Nf3 {[%emt 0:00:20]} Ne7 {[%emt 0:02:56]} 40. Nd2 {[%emt 0:00:00]} Qc6 {[%emt 0:00:00]} 41. dxe5 {[%emt 0:10:01]} fxe5 {[%emt 0:01:15]} 42. Rf3 {[%emt 0:00:53]} Rg7 {[%emt 0:02:22]} 43. Kh2 {[%emt 0:05:22]} (43. Qb3 $5 {[%cal Rb3e6]}) 43... Qe8 {[%emt 0:04:23]} 44. Qb3 {[%emt 0:13:54]} Qg6 {[%emt 0:04:44]} 45. Ra2 {[%emt 0:03:35]} Rxa2 {[%emt 0:07:34]} 46. Qxa2 {[%emt 0:00:05]} Qg4 {[%emt 0:00:07]} 47. Re3 {[%emt 0:11:20]} Rf7 {[%emt 0:04:01]} 48. f3 {[%emt 0:00:53]} Qg6 {[%emt 0:00:47]} 49. Nf1 {[%emt 0:05:23]} Qf6 {[%emt 0:01:09]} 50. Qf2 {[%emt 0:00:51]} Rf8 {[%emt 0:03:32]} 51. Nd2 {[%emt 0:02:26]} Ra8 {[%emt 0:02:40]} 52. Nb3 {[%emt 0:00:03]} Ng6 {[%emt 0:02:27]} 53. Na5 {[%emt 0:00:46]} (53. Kh3 {feels hotter.} Ra3 54. Na5 Ra4 55. Re2) 53... Rg8 {[%emt 0:03:04]} 54. Re1 {[%emt 0:00:42]} Qf7 {[%emt 0:04:48]} 55. Nb3 {[%emt 0:00:24]} Qd7 {[%emt 0:07:45]} 56. Ra1 {[%emt 0:00:28]} Rg7 {[%emt 0:01:01]} 57. Nd2 {[%emt 0:00:42]} Ne7 {[%emt 0:05:04]} 58. Qe3 {[%emt 0:00:26]} Ng8 {[%emt 0:00:38]} 59. Nf1 {[%emt 0:01:20]} Nf6 {[%emt 0:00:09]} 60. Qe2 {[%emt 0:00:00]} Nh5 {[%emt 0:00:00]} 61. Qf2 {[%emt 0:05:48]} Qc6 {[%emt 0:06:29]} 62. Qe3 {[%emt 0:02:27]} Qc4 {[%emt 0:00:34]} 63. Nd2 {[%emt 0:00:27]} Qc6 {[%emt 0:00:03]} 64. Rg1 {[%emt 0:01:55]} Qa8 {[%emt 0:01:23]} 65. Nf1 {[%emt 0:00:21]} Qd8 {[%emt 0:01:23]} 66. Qf2 {[%emt 0:00:50]} Qe8 {[%emt 0:02:08]} 67. Ne3 {[%emt 0:00:15]} Nf6 {[%emt 0:04:54]} 68. Qe2 {[%emt 0:01:52]} Qh5 {[%emt 0:01:09]} 69. Kh3 {[%emt 0:01:43]} Kh8 {[%emt 0:01:36]} (69... Nxe4 $11 {should be considered.} 70. g4 (70. Ng4 $2 Nxc3 71. Qc2+ Qf5 $17) 70... Ng5+ 71. Kg3 Nf7) 70. Ng4 $14 {[%emt 0:01:24]} Qg6 {[%emt 0:01:03]} 71. Nxf6 {[%emt 0:01:00]} Qxf6 {[%emt 0:00:03]} 72. Ra1 {[%emt 0:01:19]} Qg6 {[%emt 0:00:33]} 73. g4 {[%emt 0:01:03]} Qf7 {[%emt 0:02:06]} 74. Qe3 {[%emt 0:01:11]} Kh7 {[%emt 0:00:04]} 75. Ra5 {[%emt 0:00:14]} Qd7 {[%emt 0:00:36]} 76. Qd3 {[%emt 0:00:15]} (76. Ra8 {with more complications.} Rf7 77. h5 Qc6 78. Rb8) 76... c6 {[%emt 0:01:25]} (76... Qf7 $14) 77. Ra1 {[%emt 0:00:06]} Qf7 {[%emt 0:00:40]} 78. Qe3 {[%emt 0:01:15]} Qf6 {[%emt 0:01:07] [#]} 79. Kg3 {[%emt 0:00:24]} ({Better is} 79. h5 $1 $16) 79... Rc7 {[%emt 0:00:15]} 80. Rd1 {[%emt 0:00:53]} Rd7 {[%emt 0:00:29]} 81. Rd2 {[%emt 0:01:38]} d5 {[%emt 0:00:29]} 82. Re2 {[%emt 0:01:20]} Rf7 {[%emt 0:01:15]} 83. Kg2 {[%emt 0:00:28]} Kg8 {[%emt 0:00:25]} (83... d4 {is interesting.} 84. cxd4 exd4 85. e5 Qxh4 86. Qxd4 h5) 84. h5 {[%emt 0:00:24]} Kh7 {[%emt 0:00:35]} 85. Qd3 {[%emt 0:00:34]} (85. Ra2 $16) 85... Kg7 $11 {[%emt 0:00:05]} 86. Re3 {[%emt 0:00:36]} Qf4 {[%emt 0:00:46]} 87. Re2 {[%emt 0:00:33]} Kf6 {[%emt 0:00:32]} 88. Qd1 {[%emt 0:00:31]} Kg5 {[%emt 0:00:38]} 89. Re1 $1 {[%emt 0:00:28]} Kh4 {[%emt 0:00:27]} 90. Rh1+ {[%emt 0:00:07]} Kg5 {[%emt 0:00:00]} 91. Re1 {[%emt 0:00:48]} Kh4 {[%emt 0:00:55]} 92. Rh1+ {[%emt 0:00:18]} Kg5 {[%emt 0:00:01]} 93. Re1 {[%emt 0:00:19]} 1/2-1/2